[Event "*** Titled Tuesday Blitz"]
[Site "Chess.com"]
[Date "2020.12.29"]
[Round "10"]
[White "MaevskiyNikolay"]
[Black "Jenia84"]
[Result "1-0"]
[WhiteElo "2597"]
[BlackElo "2366"]
[TimeControl "180+1"]
[EndTime "11:57:12 PST"]
[Termination "MaevskiyNikolay won on time"]

1. d4 {[%clk 0:03:00.9]} 1... Nf6 {[%clk 0:02:51.5]} 2. c4 {[%clk 0:03:00.9]}
2... e6 {[%clk 0:02:50.9]} 3. Nf3 {[%clk 0:03:00.8]} 3... b6 {[%clk 0:02:50]} 4.
Nc3 {[%clk 0:03:00.3]} 4... Bb7 {[%clk 0:02:46.8]} 5. Bg5 {[%clk 0:02:59.7]}
5... h6 {[%clk 0:02:44.2]} 6. Bh4 {[%clk 0:02:59.7]} 6... Bb4 {[%clk 0:02:42.2]}
7. Qb3 {[%clk 0:02:59.5]} 7... a5 {[%clk 0:02:40.6]} 8. Nd2 {[%clk 0:02:52]}
8... Nc6 {[%clk 0:02:32.8]} 9. e3 {[%clk 0:02:52]} 9... Be7 {[%clk 0:02:21.6]}
10. Be2 {[%clk 0:02:46.9]} 10... a4 {[%clk 0:01:46]} 11. Qd1 {[%clk 0:02:42.5]}
11... a3 {[%clk 0:01:42.7]} 12. b3 {[%clk 0:02:42.7]} 12... Bb4 {[%clk
0:01:33.5]} 13. Qc2 {[%clk 0:02:39]} 13... Ne7 {[%clk 0:01:24.8]} 14. Bxf6
{[%clk 0:02:29]} 14... gxf6 {[%clk 0:01:24.1]} 15. Bf3 {[%clk 0:02:27.8]} 15...
Bxf3 {[%clk 0:01:20.6]} 16. Nxf3 {[%clk 0:02:26.5]} 16... Rg8 {[%clk 0:01:17.7]}
17. O-O {[%clk 0:02:18.6]} 17... Ng6 {[%clk 0:01:16.5]} 18. Ne2 {[%clk
0:02:15.2]} 18... f5 {[%clk 0:01:14.5]} 19. d5 {[%clk 0:02:12.2]} 19... Nh4
{[%clk 0:01:12]} 20. Nxh4 {[%clk 0:02:00.7]} 20... Qxh4 {[%clk 0:01:11.1]} 21.
g3 {[%clk 0:01:56.5]} 21... Qg4 {[%clk 0:01:03.7]} 22. Nd4 {[%clk 0:01:45]}
22... h5 {[%clk 0:00:55.5]} 23. Qe2 {[%clk 0:01:41.2]} 23... Bc3 {[%clk
0:00:48.2]} 24. dxe6 {[%clk 0:01:27.2]} 24... fxe6 {[%clk 0:00:46.3]} 25. Rad1
{[%clk 0:01:23.5]} 25... Bxd4 {[%clk 0:00:45]} 26. Qxg4 {[%clk 0:01:21.5]} 26...
Rxg4 {[%clk 0:00:41]} 27. exd4 {[%clk 0:01:20.8]} 27... Ke7 {[%clk 0:00:40.8]}
28. Rfe1 {[%clk 0:01:18.8]} 28... Kd6 {[%clk 0:00:36.1]} 29. Kg2 {[%clk
0:01:14.8]} 29... h4 {[%clk 0:00:34.8]} 30. Kf3 {[%clk 0:01:12.6]} 30... hxg3
{[%clk 0:00:34.2]} 31. hxg3 {[%clk 0:01:12.2]} 31... Rag8 {[%clk 0:00:26.7]} 32.
Rd3 {[%clk 0:01:10.6]} 32... Ra8 {[%clk 0:00:25.1]} 33. Ree3 {[%clk 0:01:09.7]}
33... Ra7 {[%clk 0:00:14]} 34. Re2 {[%clk 0:00:58.7]} 34... c6 {[%clk 0:00:14]}
35. Re1 {[%clk 0:00:49.8]} 35... b5 {[%clk 0:00:14.2]} 36. c5+ {[%clk
0:00:47.3]} 36... Ke7 {[%clk 0:00:12.9]} 37. d5 {[%clk 0:00:43.4]} 37... cxd5
{[%clk 0:00:12.2]} 38. Rxd5 {[%clk 0:00:43.5]} 38... Rc7 {[%clk 0:00:12.5]} 39.
Rxf5 {[%clk 0:00:41.5]} 39... Rg7 {[%clk 0:00:09.7]} 40. Rfe5 {[%clk 0:00:40.4]}
40... Kf6 {[%clk 0:00:09.4]} 41. Kg2 {[%clk 0:00:37.9]} 41... b4 {[%clk
0:00:08.8]} 42. f4 {[%clk 0:00:37]} 42... Rg8 {[%clk 0:00:05.4]} 43. R1e4 {[%clk
0:00:36.3]} 43... Rb8 {[%clk 0:00:04.9]} 44. Kf3 {[%clk 0:00:36.3]} 44... Rb5
{[%clk 0:00:04.7]} 45. Rc4 {[%clk 0:00:35]} 45... Rc6 {[%clk 0:00:04.2]} 46. g4
{[%clk 0:00:34.6]} 46... Kf7 {[%clk 0:00:03.4]} 47. Ke4 {[%clk 0:00:30.8]} 47...
Rc7 {[%clk 0:00:02.1]} 48. Kd4 {[%clk 0:00:30.3]} 48... Rc6 {[%clk 0:00:02.4]}
49. Rh5 {[%clk 0:00:29.2]} 49... d5 {[%clk 0:00:01.8]} 50. cxd6 {[%clk
0:00:27.2]} 50... Rxd6+ {[%clk 0:00:02.2]} 51. Ke4 {[%clk 0:00:26.2]} 51... Rxh5
{[%clk 0:00:02.6]} 52. gxh5 {[%clk 0:00:26.3]} 52... Rd2 {[%clk 0:00:03.1]} 53.
Rxb4 {[%clk 0:00:26.3]} 53... Rxa2 {[%clk 0:00:02.4]} 54. Ra4 {[%clk 0:00:25.6]}
54... Rh2 {[%clk 0:00:01.2]} 55. Rxa3 {[%clk 0:00:22.1]} 55... Rxh5 {[%clk
0:00:01.6]} 56. Ra7+ {[%clk 0:00:21.7]} 56... Kf6 {[%clk 0:00:02.1]} 57. b4
{[%clk 0:00:17.8]} 57... Rh3 {[%clk 0:00:02.3]} 58. b5 {[%clk 0:00:13.6]} 58...
Rb3 {[%clk 0:00:02.8]} 59. Rb7 {[%clk 0:00:13.6]} 59... Rb4+ {[%clk 0:00:03.1]}
60. Ke3 {[%clk 0:00:13.7]} 60... Rb3+ {[%clk 0:00:03.5]} 61. Kd4 {[%clk
0:00:13.7]} 61... Rb4+ {[%clk 0:00:03.2]} 62. Kc5 {[%clk 0:00:13.9]} 62... Rxf4
{[%clk 0:00:03]} 63. b6 {[%clk 0:00:13.9]} 63... Rf1 {[%clk 0:00:03.2]} 64. Rb8
{[%clk 0:00:13.9]} 64... Rc1+ {[%clk 0:00:03.6]} 65. Kd4 {[%clk 0:00:13]} 65...
Rb1 {[%clk 0:00:03]} 66. b7 {[%clk 0:00:12.7]} 66... Kg7 {[%clk 0:00:03.1]} 67.
Ke5 {[%clk 0:00:12.3]} 67... Rb6 {[%clk 0:00:03.5]} 68. Ke4 {[%clk 0:00:10.2]}
68... Kh7 {[%clk 0:00:03.6]} 69. Kf4 {[%clk 0:00:10.1]} 69... Kg7 {[%clk
0:00:03.8]} 70. Ke4 {[%clk 0:00:10.5]} 70... Kh7 {[%clk 0:00:04]} 71. Kd4 {[%clk
0:00:11]} 71... Kg7 {[%clk 0:00:04.1]} 72. Kc5 {[%clk 0:00:11.4]} 72... Rb1
{[%clk 0:00:03.9]} 73. Kd6 {[%clk 0:00:11.6]} 73... Rb6+ {[%clk 0:00:02.6]} 74.
Ke7 {[%clk 0:00:11.6]} 74... e5 {[%clk 0:00:01.5]} 75. Kd7 {[%clk 0:00:12]}
75... e4 {[%clk 0:00:01.7]} 76. Kc7 {[%clk 0:00:12.1]} 76... Rb1 {[%clk
0:00:01.7]} 77. Re8 {[%clk 0:00:12.2]} 77... Rc1+ {[%clk 0:00:01.9]} 78. Kd7
{[%clk 0:00:10.1]} 78... Rd1+ {[%clk 0:00:01.9]} 79. Kc6 {[%clk 0:00:10]} 79...
Rc1+ {[%clk 0:00:02]} 80. Kb6 {[%clk 0:00:10.2]} 80... Rb1+ {[%clk 0:00:02.1]}
81. Ka7 {[%clk 0:00:10.4]} 81... Ra1+ {[%clk 0:00:02.1]} 82. Kb8 {[%clk
0:00:10.7]} 82... Ra4 {[%clk 0:00:01.2]} 83. Kc8 {[%clk 0:00:10]} 83... Rc4+
{[%clk 0:00:01.1]} 84. Kb8 {[%clk 0:00:09.7]} 84... Rb4 {[%clk 0:00:01.1]} 85.
Re7+ {[%clk 0:00:09.5]} 1-0

[Event "*** Titled Tuesday Blitz"]
[Site "Chess.com"]
[Date "2020.12.29"]
[Round "10"]
[White "mbojan"]
[Black "Slovak_fighter2000"]
[Result "1-0"]
[WhiteElo "2673"]
[BlackElo "2484"]
[TimeControl "180+1"]
[EndTime "11:57:12 PST"]
[Termination "mbojan won by resignation"]

1. Nf3 {[%clk 0:03:00.4]} 1... Nf6 {[%clk 0:02:59.6]} 2. g3 {[%clk 0:03:00.9]}
2... b6 {[%clk 0:02:58.8]} 3. Bg2 {[%clk 0:03:01]} 3... Bb7 {[%clk 0:02:59.4]}
4. O-O {[%clk 0:03:01.8]} 4... e6 {[%clk 0:02:58.7]} 5. d3 {[%clk 0:03:02.4]}
5... d5 {[%clk 0:02:58]} 6. Nbd2 {[%clk 0:03:02.2]} 6... Be7 {[%clk 0:02:58.4]}
7. e4 {[%clk 0:02:53.5]} 7... O-O {[%clk 0:02:57.2]} 8. e5 {[%clk 0:02:53.3]}
8... Nfd7 {[%clk 0:02:55.7]} 9. Re1 {[%clk 0:02:53.8]} 9... c5 {[%clk
0:02:55.9]} 10. Nf1 {[%clk 0:02:54]} 10... Nc6 {[%clk 0:02:55.7]} 11. h4 {[%clk
0:02:53.8]} 11... a5 {[%clk 0:02:46.4]} 12. Bf4 {[%clk 0:02:52.7]} 12... a4
{[%clk 0:02:43.7]} 13. h5 {[%clk 0:02:52.9]} 13... Re8 {[%clk 0:02:39.9]} 14.
N1h2 {[%clk 0:02:53]} 14... h6 {[%clk 0:02:37.9]} 15. Ng4 {[%clk 0:02:52.8]}
15... Bf8 {[%clk 0:02:37.3]} 16. Qd2 {[%clk 0:02:51.9]} 16... a3 {[%clk
0:02:36]} 17. b3 {[%clk 0:02:51.8]} 17... d4 {[%clk 0:02:33.3]} 18. Qe2 {[%clk
0:02:09.5]} 18... Nb4 {[%clk 0:02:23.4]} 19. Rec1 {[%clk 0:01:54.1]} 19... Nd5
{[%clk 0:02:17.5]} 20. Bd2 {[%clk 0:01:52.7]} 20... b5 {[%clk 0:02:14.2]} 21.
Re1 {[%clk 0:01:14.4]} 21... b4 {[%clk 0:02:08.4]} 22. Kh2 {[%clk 0:01:10.6]}
22... N7b6 {[%clk 0:02:02.8]} 23. Qf1 {[%clk 0:01:05.4]} 23... Nc3 {[%clk
0:01:58.7]} 24. Bxc3 {[%clk 0:01:03.4]} 24... dxc3 {[%clk 0:01:55.5]} 25. Nh4
{[%clk 0:00:59]} 25... Bxg2 {[%clk 0:01:49.8]} 26. Qxg2 {[%clk 0:00:59.9]} 26...
Qg5 {[%clk 0:01:47.4]} 27. Qf3 {[%clk 0:01:00.3]} 27... Nd5 {[%clk 0:01:43.2]}
28. Kg2 {[%clk 0:00:43.9]} 28... Qxh5 {[%clk 0:01:39.6]} 29. Rh1 {[%clk
0:00:34.2]} 29... Qg5 {[%clk 0:01:35.6]} 30. Qe4 {[%clk 0:00:34.3]} 30... h5
{[%clk 0:01:18.9]} 31. Nh2 {[%clk 0:00:28.2]} 31... g6 {[%clk 0:01:15.9]} 32.
N4f3 {[%clk 0:00:23.1]} 32... Qf5 {[%clk 0:01:12.4]} 33. Qc4 {[%clk 0:00:21]}
33... Rad8 {[%clk 0:00:58.1]} 34. Rae1 {[%clk 0:00:20.6]} 34... Bg7 {[%clk
0:00:53.7]} 35. Re4 {[%clk 0:00:20.6]} 35... Rc8 {[%clk 0:00:51.3]} 36. g4
{[%clk 0:00:20.6]} 36... hxg4 {[%clk 0:00:49.2]} 37. Nxg4 {[%clk 0:00:21.5]}
37... g5 {[%clk 0:00:45.7]} 38. Rh5 {[%clk 0:00:20.7]} 38... Nf4+ {[%clk
0:00:44.8]} 39. Rxf4 {[%clk 0:00:19.9]} 39... Qxf4 {[%clk 0:00:45.4]} 40. Qxf4
{[%clk 0:00:19.8]} 40... gxf4 {[%clk 0:00:45.7]} 41. Rg5 {[%clk 0:00:17.3]}
41... Kf8 {[%clk 0:00:44.9]} 42. Rh5 {[%clk 0:00:14.3]} 42... Rcd8 {[%clk
0:00:41.5]} 43. Ne1 {[%clk 0:00:13.6]} 43... Rd5 {[%clk 0:00:39.9]} 44. Kf3
{[%clk 0:00:13.7]} 44... Rd4 {[%clk 0:00:38]} 45. Ke2 {[%clk 0:00:11.9]} 45...
Ke7 {[%clk 0:00:35]} 46. Nf3 {[%clk 0:00:11.8]} 46... Rd5 {[%clk 0:00:34]} 47.
Rh7 {[%clk 0:00:12]} 47... Rg8 {[%clk 0:00:31.8]} 48. Ke1 {[%clk 0:00:08.3]}
48... Kf8 {[%clk 0:00:24.1]} 49. Rh1 {[%clk 0:00:08]} 49... Rh8 {[%clk
0:00:23.7]} 50. Rg1 {[%clk 0:00:08.5]} 50... Rh3 {[%clk 0:00:19.8]} 51. Ke2
{[%clk 0:00:08.3]} 51... Rd8 {[%clk 0:00:16.7]} 52. Ng5 {[%clk 0:00:07.8]} 52...
Rh5 {[%clk 0:00:15.9]} 53. Nf3 {[%clk 0:00:06.3]} 53... Rd5 {[%clk 0:00:15.3]}
54. Rf1 {[%clk 0:00:05.5]} 54... Bxe5 {[%clk 0:00:14.6]} 55. Ngxe5 {[%clk
0:00:05.8]} 55... Rhxe5+ {[%clk 0:00:15.2]} 56. Nxe5 {[%clk 0:00:06.7]} 56...
Rxe5+ {[%clk 0:00:16.1]} 57. Kf3 {[%clk 0:00:07.4]} 57... Ke7 {[%clk 0:00:14.5]}
58. Rh1 {[%clk 0:00:07.5]} 58... Rf5 {[%clk 0:00:12.3]} 59. Rh8 {[%clk
0:00:06.9]} 59... Rg5 {[%clk 0:00:10.7]} 60. Rh1 {[%clk 0:00:05.4]} 60... e5
{[%clk 0:00:09.9]} 61. Ke4 {[%clk 0:00:05.3]} 61... Ke6 {[%clk 0:00:10]} 62. Kf3
{[%clk 0:00:05.5]} 62... Kf5 {[%clk 0:00:09.5]} 63. Re1 {[%clk 0:00:04.8]} 63...
f6 {[%clk 0:00:09.6]} 64. Rf1 {[%clk 0:00:04.9]} 64... Rh5 {[%clk 0:00:09.9]}
65. Rg1 {[%clk 0:00:05.2]} 65... Rh3+ {[%clk 0:00:09.6]} 66. Ke2 {[%clk
0:00:05.7]} 66... Rh2 {[%clk 0:00:07.9]} 67. Rf1 {[%clk 0:00:04.8]} 67... Kg4
{[%clk 0:00:07]} 68. Rg1+ {[%clk 0:00:05]} 68... Kh3 {[%clk 0:00:07.2]} 69. Kf3
{[%clk 0:00:05.3]} 69... f5 {[%clk 0:00:06.2]} 70. Re1 {[%clk 0:00:03.8]} 70...
e4+ {[%clk 0:00:04.9]} 71. dxe4 {[%clk 0:00:04.7]} 71... fxe4+ {[%clk
0:00:05.7]} 72. Rxe4 {[%clk 0:00:05.2]} 72... Rh1 {[%clk 0:00:05.1]} 73. Re8
{[%clk 0:00:05.4]} 73... Kh2 {[%clk 0:00:04.1]} 74. Rh8+ {[%clk 0:00:02.7]}
74... Kg1 {[%clk 0:00:04.4]} 75. Rxh1+ {[%clk 0:00:03.6]} 75... Kxh1 {[%clk
0:00:04.9]} 76. Kxf4 {[%clk 0:00:03.9]} 76... Kg2 {[%clk 0:00:05.1]} 77. Ke3
{[%clk 0:00:04]} 77... Kf1 {[%clk 0:00:02.9]} 78. f4 {[%clk 0:00:04.2]} 78...
Ke1 {[%clk 0:00:03.4]} 79. f5 {[%clk 0:00:03.8]} 79... Kd1 {[%clk 0:00:03.8]}
80. Kd3 {[%clk 0:00:03.6]} 80... Kc1 {[%clk 0:00:04.4]} 81. f6 {[%clk
0:00:03.8]} 81... Kb2 {[%clk 0:00:05]} 82. f7 {[%clk 0:00:04.4]} 82... Kxa2
{[%clk 0:00:05.6]} 83. f8=Q {[%clk 0:00:04.9]} 83... Kb2 {[%clk 0:00:06.5]} 84.
Qxc5 {[%clk 0:00:05.1]} 84... a2 {[%clk 0:00:07.1]} 85. Qxb4 {[%clk 0:00:05.7]}
85... a1=Q {[%clk 0:00:07.3]} 86. Qxc3+ {[%clk 0:00:06.4]} 86... Kb1 {[%clk
0:00:07.3]} 87. Qxa1+ {[%clk 0:00:07.3]} 1-0

[Event "*** Titled Tuesday Blitz"]
[Site "Chess.com"]
[Date "2020.12.29"]
[Round "10"]
[White "tjychess"]
[Black "Legendinunknown"]
[Result "1-0"]
[WhiteElo "2744"]
[BlackElo "2571"]
[TimeControl "180+1"]
[EndTime "11:57:24 PST"]
[Termination "tjychess won by checkmate"]

1. d4 {[%clk 0:03:00.9]} 1... d5 {[%clk 0:02:57.9]} 2. c4 {[%clk 0:03:01.1]}
2... c6 {[%clk 0:02:57.8]} 3. Nf3 {[%clk 0:03:00.1]} 3... Nf6 {[%clk 0:02:57.9]}
4. Nc3 {[%clk 0:02:57.1]} 4... e6 {[%clk 0:02:57.3]} 5. Bg5 {[%clk 0:02:56.8]}
5... h6 {[%clk 0:02:55.9]} 6. Bh4 {[%clk 0:02:54.3]} 6... dxc4 {[%clk
0:02:55.1]} 7. e4 {[%clk 0:02:54.8]} 7... g5 {[%clk 0:02:55.2]} 8. Bg3 {[%clk
0:02:55]} 8... b5 {[%clk 0:02:55.3]} 9. e5 {[%clk 0:02:51.3]} 9... Nd5 {[%clk
0:02:51.4]} 10. h4 {[%clk 0:02:51.5]} 10... g4 {[%clk 0:02:48.3]} 11. Nd2 {[%clk
0:02:51.3]} 11... h5 {[%clk 0:02:42]} 12. Nde4 {[%clk 0:02:49]} 12... Be7 {[%clk
0:02:41.6]} 13. Be2 {[%clk 0:02:44.7]} 13... Nd7 {[%clk 0:02:40.1]} 14. Qd2
{[%clk 0:02:31.2]} 14... Bb7 {[%clk 0:02:37.7]} 15. Nd6+ {[%clk 0:02:13.5]}
15... Bxd6 {[%clk 0:02:36]} 16. exd6 {[%clk 0:02:14.4]} 16... Nxc3 {[%clk
0:02:36]} 17. bxc3 {[%clk 0:01:35.4]} 17... Qb6 {[%clk 0:02:32.1]} 18. Qg5
{[%clk 0:01:32.8]} 18... f6 {[%clk 0:02:30.1]} 19. Qg6+ {[%clk 0:01:30.8]} 19...
Kd8 {[%clk 0:02:28.7]} 20. O-O {[%clk 0:01:27]} 20... c5 {[%clk 0:02:25.5]} 21.
Rfd1 {[%clk 0:01:19.8]} 21... cxd4 {[%clk 0:02:24.2]} 22. Rxd4 {[%clk
0:01:20.7]} 22... Qc5 {[%clk 0:02:17.3]} 23. Rad1 {[%clk 0:01:13.5]} 23... Bc6
{[%clk 0:02:13.4]} 24. Qg7 {[%clk 0:01:06.9]} 24... Re8 {[%clk 0:02:11.3]} 25.
R4d2 {[%clk 0:00:52.6]} 25... Kc8 {[%clk 0:02:05.1]} 26. Bf4 {[%clk 0:00:48.3]}
26... Kb7 {[%clk 0:01:59.3]} 27. a4 {[%clk 0:00:44.4]} 27... a6 {[%clk
0:01:55.5]} 28. Rb2 {[%clk 0:00:43.9]} 28... Qa3 {[%clk 0:01:53.3]} 29. Rdb1
{[%clk 0:00:42.2]} 29... Qxa4 {[%clk 0:01:49.8]} 30. Rb4 {[%clk 0:00:40.5]}
30... Qa3 {[%clk 0:01:47.2]} 31. Bxc4 {[%clk 0:00:40.5]} 31... Qxc3 {[%clk
0:01:46.8]} 32. Bxb5 {[%clk 0:00:29.3]} 32... axb5 {[%clk 0:01:47.7]} 33. Rxb5+
{[%clk 0:00:29.7]} 33... Kc8 {[%clk 0:01:36.3]} 34. Rxh5 {[%clk 0:00:15]} 34...
Ra1 {[%clk 0:01:32.6]} 35. Rxa1 {[%clk 0:00:10.7]} 35... Qxa1+ {[%clk
0:01:33.5]} 36. Kh2 {[%clk 0:00:11.6]} 36... Qf1 {[%clk 0:01:32.5]} 37. Qxg4
{[%clk 0:00:12.1]} 37... f5 {[%clk 0:01:28]} 38. Qg6 {[%clk 0:00:05.7]} 38...
Nf6 {[%clk 0:01:27.1]} 39. Rg5 {[%clk 0:00:05.1]} 39... Rf8 {[%clk 0:01:19.8]}
40. f3 {[%clk 0:00:04.7]} 40... Qd3 {[%clk 0:01:15.5]} 41. Be5 {[%clk
0:00:03.7]} 41... Nd7 {[%clk 0:01:14.9]} 42. Bg3 {[%clk 0:00:03.3]} 42... Qd5
{[%clk 0:01:13.6]} 43. Qg7 {[%clk 0:00:03.3]} 43... Rd8 {[%clk 0:01:11.6]} 44.
Qf7 {[%clk 0:00:03.7]} 44... Qc4 {[%clk 0:01:10.8]} 45. Rg8 {[%clk 0:00:03.3]}
45... Rxg8 {[%clk 0:01:09.9]} 46. Qxg8+ {[%clk 0:00:04.2]} 46... Kb7 {[%clk
0:01:10.5]} 47. Qd8 {[%clk 0:00:05.1]} 47... f4 {[%clk 0:01:09.8]} 48. Qc7+
{[%clk 0:00:04.1]} 48... Ka6 {[%clk 0:01:10]} 49. Bf2 {[%clk 0:00:05]} 49... Kb5
{[%clk 0:01:09.9]} 50. Qa7 {[%clk 0:00:04.8]} 50... Qd5 {[%clk 0:01:08.6]} 51.
Qa3 {[%clk 0:00:04.7]} 51... Nc5 {[%clk 0:01:07.1]} 52. Qb2+ {[%clk 0:00:03.9]}
52... Nb3 {[%clk 0:01:06.8]} 53. Qc3 {[%clk 0:00:02.8]} 53... Nc5 {[%clk
0:01:04]} 54. Qb2+ {[%clk 0:00:02.9]} 54... Ka6 {[%clk 0:01:03.4]} 55. Qa3+
{[%clk 0:00:02.9]} 55... Na4 {[%clk 0:01:03.2]} 56. Qb4 {[%clk 0:00:02.5]} 56...
Bb5 {[%clk 0:00:56.1]} 57. Qxf4 {[%clk 0:00:02.5]} 57... Nc3 {[%clk 0:00:54.8]}
58. Bg3 {[%clk 0:00:02.7]} 58... Ne2 {[%clk 0:00:53.9]} 59. Qg5 {[%clk
0:00:03.1]} 59... Nxg3 {[%clk 0:00:53.1]} 60. Kxg3 {[%clk 0:00:03.7]} 60...
Qxd6+ {[%clk 0:00:53]} 61. Qf4 {[%clk 0:00:04.1]} 61... e5 {[%clk 0:00:53]} 62.
Qg5 {[%clk 0:00:03.6]} 62... e4+ {[%clk 0:00:50.9]} 63. Qf4 {[%clk 0:00:04.1]}
63... Qg6+ {[%clk 0:00:50.7]} 64. Kf2 {[%clk 0:00:04.4]} 64... exf3 {[%clk
0:00:49.5]} 65. gxf3 {[%clk 0:00:05.3]} 65... Bc6 {[%clk 0:00:47.9]} 66. Qg5
{[%clk 0:00:04.5]} 66... Qd3 {[%clk 0:00:47]} 67. Qf6 {[%clk 0:00:03.6]} 67...
Kb5 {[%clk 0:00:45.4]} 68. Qf4 {[%clk 0:00:04.2]} 68... Qc2+ {[%clk 0:00:44.8]}
69. Kg3 {[%clk 0:00:04]} 69... Qd1 {[%clk 0:00:44.8]} 70. Qg5+ {[%clk
0:00:03.5]} 70... Kc4 {[%clk 0:00:42.7]} 71. Qe3 {[%clk 0:00:04.4]} 71... Qd7
{[%clk 0:00:40.9]} 72. Qf4+ {[%clk 0:00:04.3]} 72... Kb5 {[%clk 0:00:40.4]} 73.
h5 {[%clk 0:00:04.4]} 73... Qg7+ {[%clk 0:00:39.6]} 74. Kh4 {[%clk 0:00:04]}
74... Qa1 {[%clk 0:00:36]} 75. h6 {[%clk 0:00:03.7]} 75... Qh1+ {[%clk
0:00:35.8]} 76. Kg5 {[%clk 0:00:04.1]} 76... Bxf3 {[%clk 0:00:35.2]} 77. Qf5+
{[%clk 0:00:04.5]} 77... Kc6 {[%clk 0:00:34.9]} 78. h7 {[%clk 0:00:04.3]} 78...
Qg2+ {[%clk 0:00:25.6]} 79. Kh6 {[%clk 0:00:02.7]} 79... Be4 {[%clk 0:00:20.2]}
80. Qf6+ {[%clk 0:00:02.4]} 80... Kd5 {[%clk 0:00:20.1]} 81. h8=Q {[%clk
0:00:02.8]} 81... Qh3+ {[%clk 0:00:20.5]} 82. Kg7 {[%clk 0:00:03.2]} 82... Qg4+
{[%clk 0:00:20.8]} 83. Kf8 {[%clk 0:00:03.3]} 83... Qc8+ {[%clk 0:00:20.8]} 84.
Kf7 {[%clk 0:00:03.6]} 84... Qd7+ {[%clk 0:00:19.7]} 85. Qe7 {[%clk 0:00:03.6]}
85... Qf5+ {[%clk 0:00:19.8]} 86. Qhf6 {[%clk 0:00:03.4]} 86... Qh7+ {[%clk
0:00:19.7]} 87. Kf8 {[%clk 0:00:03.8]} 87... Qh3 {[%clk 0:00:18.8]} 88. Qfe5+
{[%clk 0:00:03.5]} 88... Kc4 {[%clk 0:00:19.5]} 89. Qxe4+ {[%clk 0:00:03.9]}
89... Kb5 {[%clk 0:00:20.1]} 90. Q7b7+ {[%clk 0:00:03.5]} 90... Ka5 {[%clk
0:00:19.8]} 91. Qeb4# {[%clk 0:00:03.9]} 1-0

[Event "*** Titled Tuesday Blitz"]
[Site "Chess.com"]
[Date "2020.12.29"]
[Round "11"]
[White "jacky72"]
[Black "skoularikii"]
[Result "1-0"]
[WhiteElo "2794"]
[BlackElo "2627"]
[TimeControl "180+1"]
[EndTime "11:59:35 PST"]
[Termination "jacky72 won by resignation"]

1. d4 {[%clk 0:03:00.9]} 1... d5 {[%clk 0:02:59.6]} 2. c4 {[%clk 0:03:01.4]}
2... c6 {[%clk 0:02:59.5]} 3. Nf3 {[%clk 0:03:00.9]} 3... Nf6 {[%clk 0:02:59.5]}
4. Nc3 {[%clk 0:03:01.6]} 4... g6 {[%clk 0:02:58.3]} 5. cxd5 {[%clk 0:03:00.3]}
5... cxd5 {[%clk 0:02:58.3]} 6. Bf4 {[%clk 0:03:00.7]} 6... Bg7 {[%clk
0:02:57.8]} 7. e3 {[%clk 0:03:01.2]} 7... O-O {[%clk 0:02:57.3]} 8. Be2 {[%clk
0:03:01.6]} 8... Nc6 {[%clk 0:02:54.4]} 9. h3 {[%clk 0:03:02.1]} 9... Bf5 {[%clk
0:02:52.9]} 10. O-O {[%clk 0:03:02.2]} 10... Qb8 {[%clk 0:02:43.1]} 11. Bxb8
{[%clk 0:03:01.1]} 1-0

[Event "*** Titled Tuesday Blitz"]
[Site "Chess.com"]
[Date "2020.12.29"]
[Round "11"]
[White "BobbySteen89"]
[Black "chescomhuynya"]
[Result "0-1"]
[WhiteElo "2145"]
[BlackElo "2549"]
[TimeControl "180+1"]
[EndTime "12:00:56 PST"]
[Termination "chescomhuynya won by checkmate"]

1. e4 {[%clk 0:03:00.9]} 1... c5 {[%clk 0:02:59.6]} 2. Nf3 {[%clk 0:03:00.7]}
2... d6 {[%clk 0:02:58.2]} 3. d4 {[%clk 0:03:00.5]} 3... cxd4 {[%clk 0:02:55.4]}
4. Nxd4 {[%clk 0:03:00.9]} 4... Nf6 {[%clk 0:02:55.3]} 5. Nc3 {[%clk 0:03:01.3]}
5... a6 {[%clk 0:02:54.8]} 6. Bg5 {[%clk 0:03:00.8]} 6... Nbd7 {[%clk
0:02:54.7]} 7. f4 {[%clk 0:03:00]} 7... Qc7 {[%clk 0:02:54.7]} 8. Qe2 {[%clk
0:02:58.9]} 8... e6 {[%clk 0:02:54.6]} 9. O-O-O {[%clk 0:02:52.8]} 9... b5
{[%clk 0:02:54.4]} 10. g4 {[%clk 0:02:51.4]} 10... b4 {[%clk 0:02:52.6]} 11. Nd5
{[%clk 0:02:41.7]} 11... exd5 {[%clk 0:02:53.3]} 12. exd5+ {[%clk 0:02:40.8]}
12... Be7 {[%clk 0:02:53.8]} 13. Nc6 {[%clk 0:02:32.7]} 13... Nb8 {[%clk
0:02:52.3]} 14. Bxf6 {[%clk 0:02:29.1]} 14... gxf6 {[%clk 0:02:51.1]} 15. Re1
{[%clk 0:02:27]} 15... Nxc6 {[%clk 0:02:50.6]} 16. dxc6 {[%clk 0:02:27.4]} 16...
Kd8 {[%clk 0:02:39.8]} 17. Bg2 {[%clk 0:02:26.5]} 17... Re8 {[%clk 0:02:39.6]}
18. f5 {[%clk 0:02:23.6]} 18... a5 {[%clk 0:02:37.1]} 19. Bd5 {[%clk 0:02:22]}
19... Rf8 {[%clk 0:02:33.6]} 20. Rhf1 {[%clk 0:02:17.5]} 20... Ba6 {[%clk
0:02:33.5]} 21. Bc4 {[%clk 0:02:16.8]} 21... Bxc4 {[%clk 0:02:31.5]} 22. Qxc4
{[%clk 0:02:17.7]} 22... Rc8 {[%clk 0:02:26]} 23. Qb5 {[%clk 0:02:07.6]} 23...
Qxc6 {[%clk 0:02:25.4]} 24. Qxa5+ {[%clk 0:02:07.8]} 24... Qc7 {[%clk 0:02:26]}
25. Qxb4 {[%clk 0:02:08]} 25... Qxc2# {[%clk 0:02:26.1]} 0-1

[Event "*** Titled Tuesday Blitz"]
[Site "Chess.com"]
[Date "2020.12.29"]
[Round "11"]
[White "yuki_chess123"]
[Black "Itk04"]
[Result "1/2-1/2"]
[WhiteElo "2240"]
[BlackElo "2467"]
[TimeControl "180+1"]
[EndTime "12:01:36 PST"]
[Termination "Game drawn by agreement"]

1. Nf3 {[%clk 0:02:59.4]} 1... Nf6 {[%clk 0:02:59.9]} 2. c4 {[%clk 0:02:58.3]}
2... e6 {[%clk 0:02:57.2]} 3. Nc3 {[%clk 0:02:55.3]} 3... d5 {[%clk 0:02:57.7]}
4. cxd5 {[%clk 0:02:54.6]} 4... exd5 {[%clk 0:02:58.6]} 5. d4 {[%clk 0:02:55]}
5... Be7 {[%clk 0:02:58]} 6. Bg5 {[%clk 0:02:54.5]} 6... O-O {[%clk 0:02:57.9]}
7. Qc2 {[%clk 0:02:53.9]} 7... c6 {[%clk 0:02:58]} 8. e3 {[%clk 0:02:53.8]} 8...
Re8 {[%clk 0:02:57.8]} 9. Bd3 {[%clk 0:02:53.6]} 9... h6 {[%clk 0:02:53.5]} 10.
Bxf6 {[%clk 0:02:53.4]} 10... Bxf6 {[%clk 0:02:53.6]} 11. b4 {[%clk 0:02:53.2]}
11... Be7 {[%clk 0:02:44.1]} 12. b5 {[%clk 0:02:37.5]} 12... c5 {[%clk
0:02:43.6]} 13. dxc5 {[%clk 0:02:37.3]} 13... Bxc5 {[%clk 0:02:43.6]} 14. O-O
{[%clk 0:02:37.3]} 14... Bg4 {[%clk 0:02:32.5]} 15. Ne2 {[%clk 0:02:29.8]} 15...
Nd7 {[%clk 0:02:23.2]} 16. Ned4 {[%clk 0:02:27.6]} 16... Rc8 {[%clk 0:02:22.7]}
17. Qb3 {[%clk 0:02:27.2]} 17... Ne5 {[%clk 0:02:03.2]} 18. Nxe5 {[%clk
0:02:24.5]} 18... Rxe5 {[%clk 0:02:04.1]} 19. Rac1 {[%clk 0:02:21.5]} 19... Bxd4
{[%clk 0:01:51.9]} 20. Rxc8 {[%clk 0:02:14.7]} 20... Bxc8 {[%clk 0:01:52.8]} 21.
exd4 {[%clk 0:02:14.7]} 21... Re7 {[%clk 0:01:52.3]} 22. Rc1 {[%clk 0:01:59.6]}
1/2-1/2